Cogmind - Beta 17.1 @@@ ROGUE MODE // 2026.09.12 @ 11:58:40 Player: Figgis Result: Destroyed by G-34 Mercenary with Small Laser Performance ------------- Evolutions (0) 0 Regions Visited (1) 200 Robots Destroyed (6) 30 Value Destroyed (84) 84 Prototype IDs (0) 0 Alien Tech Used (0) 0 Bonus (0) 0 TOTAL SCORE: 314 Bonus ------- None Cogmind --------- Core Integrity 0/250 Matter 269/300 Energy 248/250 System Corruption 0% Temperature Cool (6) Movement Treading (160) Location -10/Materials Parts ------- > --- POWER (1) -------- Ion Engine > --- PROPULSION (2) --- Light Treads Light Treads > --- UTILITY (2) ------ Small Storage Unit > --- WEAPON (2) ------- Assault Rifle Assault Rifle > --- INVENTORY (8) ---- Light Ion Engine Medium Laser Light Assault Rifle Peak State ------------ > --- POWER ------------ Ion Engine > --- PROPULSION ------- Light Treads Light Treads > --- UTILITY ---------- Small Storage Unit > --- WEAPON ----------- Assault Rifle Light Assault Rifle > --- INVENTORY -------- Light Ion Engine Medium Laser [Rating: 6] Favorites ----------- Power Ion Engine Engine Ion Engine Propulsion Light Treads Treads Light Treads Utility Small Storage Unit Storage Small Storage Unit Weapon Assault Rifle Ballistic Gun Assault Rifle Build | -11 -10 ------- Run | Yrd Mat Slots Evolved . | . . Power . | . . Propulsion . | . . Utility . | . . Weapon . | . . Parts Attached 7 | 4 3 Power 1 | . 1 Engine 1 | . 1 Core . | . . Reactor . | . . Propulsion 2 | 2 . Treads 2 | 2 . Leg . | . . Wheel . | . . Hover . | . . Flight . | . . Utility 1 | . 1 Device . | . . Storage 1 | . 1 Processor . | . . Hackware . | . . Protection . | . . Artifact . | . . Weapon 3 | 2 1 Energy Gun . | . . Energy Cannon . | . . Ballistic Gun 3 | 2 1 Ballistic Cannon . | . . Launcher . | . . Special Weapon . | . . Impact Weapon . | . . Slashing Weapon . | . . Piercing Weapon . | . . Special Melee Weapon . | . . Unidentified Prototypes . | . . Parts Lost . | . . Power . | . . Propulsion . | . . Utility . | . . Weapon . | . . Highest Loss Streak . | . . To Critical Strikes . | . . Average Backups 2 | 2 2 Power 1 | 1 1 Propulsion . | . . Utility . | . . Weapon 1 | . 1 Tool/Special . | . . Unused Backups 2 | . 2 Power 1 | . 1 Propulsion . | . . Utility . | . . Weapon 1 | . 1 Tool/Special . | . . Average Slot Usage (%) 83 | . 83 Engine 13 | . 13 Treads 28 | . 28 Storage 13 | . 13 Ballistic Gun 28 | . 28 Peak Build Rating 6 | 4 6 Average Rating 5 | 2 5 On Entrance 2 | . 4 Avg Prop Armor Cover (%) 31 | 33 26 Naked Turns . | . . Heaviest Build 14 | 3 14 Greatest Support 40 | 3 40 Greatest Overweight (x) . | . . Average Overweight (x) . | . . Largest Inventory Capacity 8 | 5 8 Average Capacity 7 | 5 7 Most Carried 5 | 5 4 Average Carried 2 | 2 2 Final Capacity 8 | 5 8 Final Carried 4 | 4 3 Class Distribution -------------------- 100% | Mutant Dominant Class ---------------- Mutant | -10/Materials Resources | -11 -10 ----------- Run | Yrd Mat Matter Collected 301 | 237 64 Remotely . | . . Salvage Created 112 | . 112 Parts 11 | . 11 Haulers Intercepted . | . . Recyclers Shooed . | . . Parts Field Recycled . | . . Retrieved Matter . | . . Parts Self-Destructed . | . . Prevented . | . . Parts Restored . | . . Kills | -11 -10 ------- Run | Yrd Mat Combat Hostiles Destroyed 6 | . 6 Guns 6 | . 6 Classes Destroyed 2 | . 2 Swarmer 5 | . 5 Grunt 1 | . 1 Best Kill Streak 3 | . 3 Combat Bots Only 3 | . 3 Max Kills in Single Turn 1 | . 1 Gunslinging . | . . Exploded . | . . Melee . | . . Uniques/NPCs Destroyed . | . . Combat | -11 -10 -------- Run | Yrd Mat Hostile Shots Fired 38 | . 38 Missed 12 | . 12 Hits 26 | . 26 Projectile 26 | . 26 AOE 1 | . 1 Critical Strikes 1 | . 1 Damage Taken 418 | . 418 Core 260 | . 260 Absorbed by Shields . | . . Core Remaining (%) 100 | 100 . Volleys Fired 14 | . 14 Largest 2 | . 2 Hottest 40 | . 40 Shots Fired 28 | . 28 Gun 28 | . 28 Cannon . | . . Launcher . | . . Special . | . . Kinetic 28 | . 28 Thermal . | . . Explosive . | . . Electromagnetic . | . . Robot Hit Streak 5 | . 5 Robot Miss Streak 3 | . 3 Penetration Max . | . . Secondary Targets 2 | . 2 Max Gunslinging Chain 1 | . 1 Shots Hit Robots 15 | . 15 Core Hits 7 | . 7 Critical Kills 1 | . 1 Critical Parts Destroyed . | . . Critical Strikes 1 | . 1 Destroy 1 | . 1 Melee Attacks . | . . Impact . | . . Slashing . | . . Piercing . | . . Sneak Attacks . | . . Combat Hostiles . | . . Follow-up Attacks . | . . Damage Inflicted 188 | . 188 Guns 188 | . 188 Cannons . | . . Explosions . | . . Melee . | . . Ramming . | . . Kinetic 188 | . 188 Thermal . | . . Explosive . | . . Electromagnetic . | . . Impact . | . . Slashing . | . . Piercing . | . . Highest Corruption . | . . Average Corruption . | . . Corruption Purged . | . . Corruption Blocked . | . . Overload Shots . | . . Overflow Damage . | . . Projectiles . | . . Explosions . | . . Melee . | . . Knockbacks . | . . Impact . | . . Kinetic . | . . Secondary . | . . Self-Inflicted Damage . | . . Shots . | . . Rammed . | . . Targets Rammed . | . . Kicked . | . . Crushed . | . . Highest Temperature 5 | . 5 Average Temperature 5 | . 5 Received Heat Transfer 36 | . 36 Siege Activations . | . . Martial Activations . | . . Shielding Activations . | . . Robots Disrupted . | . . Combat Hostiles . | . . Robots Corrupted . | . . Combat Hostiles . | . . Parts Fried . | . . Impact Corruptions . | . . Robots Melted . | . . Combat Hostiles . | . . Parts Melted . | . . Heat Transferred . | . . Parts Sabotaged . | . . Parts Stolen . | . . Parts Stripped . | . . Power Chain Reactions . | . . Alert | -11 -10 ------- Run | Yrd Mat Maximum Alert Level . | . . Low Security (%) 100 | 100 100 Level 1 . | . . Level 2 . | . . Level 3 . | . . Level 4 . | . . Level 5 . | . . High Security . | . . Max Security . | . . Peak Influence 60 | . 60 Initial . | . . Average 11 | . 11 Influence Increases 170 | . 170 Destroy 0b10 Robot/C 120 | . 120 Destroy Leader 20 | . 20 Lose Combat Pursuer 30 | . 30 Influence Decreases 136 | . 136 Time Decay 136 | . 136 Squads Dispatched 2 | . 2 Investigation 1 | . 1 Extermination . | . . Reinforcement 1 | . 1 Assault . | . . Garrison . | . . Intercept . | . . Searches Triggered . | . . Construction Impeded . | . . Haulers Reinforced . | . . Active Scanning Responses . | . . Cargo Convoy Interrupts . | . . Stealth | -11 -10 --------- Run | Yrd Mat Distress Signals 1 | . 1 Communications Jammed . | . . Distress Signals . | . . Times Spotted 12 | . 12 Peak Tracking Total 4 | . 4 Tactical Retreats 1 | . 1 Traps | -11 -10 ------- Run | Yrd Mat Traps Triggered 1 | . 1 Indirectly . | . . Trap Hack Attempts . | . . Triggered . | . . Disarmed . | . . Reprogrammed . | . . Reused . | . . Traps Extracted . | . . Installed . | . . Triggered . | . . Machines | -11 -10 ---------- Run | Yrd Mat Machines Disabled . | . . Max in Single Turn . | . . Machines Repaired . | . . Machines Dismantled . | . . Machines Sabotaged . | . . Overloaded Fab Kills . | . . Hacking | -11 -10 --------- Run | Yrd Mat Machines Accessed 2 | . 2 Terminals 2 | . 2 Fabricators . | . . Repair Stations . | . . Recycling Units . | . . Scanalyzers . | . . Garrison Access . | . . Total Hacks 6 | . 6 Successful . | . . Failed 6 | . 6 Catastrophic . | . . Database Lockouts . | . . Manual 2 | . 2 Terminals 6 | . 6 Fabricators . | . . Repair Stations . | . . Recycling Units . | . . Scanalyzers . | . . Garrison Access . | . . Terminal Hacks . | . . Fabricator Hacks . | . . Repair Station Hacks . | . . Recycling Unit Hacks . | . . Scanalyzer . | . . Garrison Access Hacks . | . . Unauthorized Hacks . | . . Terminals . | . . Fabricators . | . . Repair Stations . | . . Recycling Units . | . . Scanalyzers . | . . Garrison Access . | . . Data Cores Recovered . | . . Used . | . . Hacking Detections 2 | . 2 Full Trace Events . | . . Feedback Events . | . . Feedback Blocked . | . . Robot Schematics Acquired . | . . Robots Built . | . . Authchips . | . . Time . | . . Total Robot Build Rating . | . . Part Schematics Acquired . | . . Parts Built . | . . Authchips . | . . Time . | . . Total Part Build Rating . | . . Part Studies Acquired . | . . Parts Repaired . | . . Time . | . . Parts Recycled . | . . Recycled Matter . | . . Retrieved Matter . | . . Retrieved Components . | . . Parts Scanalyzed . | . . Part Schematics Acquired . | . . Parts Damaged . | . . Bothacking | -11 -10 ------------ Run | Yrd Mat Used RIF Installer . | . . Robots Hacked . | . . Non-combat . | . . Combat . | . . Robot Hacks Applied . | . . Relay Couplers Released . | . . Fabnet Peak Effective % . | . . Robots Rewired . | . . Allies Hacked . | . . Hacks Repelled . | . . Allies | -11 -10 -------- Run | Yrd Mat Total Allies . | . . Largest Group . | . . Highest-Rated Group . | . . Highest-Rated Ally . | . . Total Orders . | . . Ally Attacks . | . . Total Damage . | . . Kills . | . . Allies Corrupted . | . . Allies Melted . | . . Intel | -11 -10 ------- Run | Yrd Mat Active Infowar (turns) . | . . Robot Analysis Total . | . . Derelict Logs Recovered . | . . Drone Launches . | . . Drone Recoveries . | . . Exploration | -11 -10 ------------- Run | Yrd Mat Turns Passed 723 | 32 691 Spaces Moved 421 | 39 382 Core 49 | 39 10 Treads 372 | . 372 Legs . | . . Wheels . | . . Hover . | . . Flight . | . . Fastest Speed 50 | 50 50 Average Speed 147 | 50 157 Slowest Speed 160 | 50 160 Overloaded Moves . | . . Propulsion Burnouts . | . . Robots Hopped . | . . Potential Cave-ins . | . . Cave-ins Triggered . | . . Exploration Rate (%) 35 | 3 67 Regions Visited 1 Branch Regions . Pre-discovered Areas . | . . Known Exits Taken . | . . Unknown Exits Taken 1 | 1 . Scrap Searched . | . . Spaces Dug . | . . Terrain Destroyed . | . . Melee . | . . Projectile . | . . AOE . | . . Terrain Rammed . | . . Walls Destroyed . | . . Machines Disabled . | . . Actions | -11 -10 --------- Run | Yrd Mat Total 499 | 50 449 Wait 49 | . 49 Move 420 | 38 382 Hop . | . . Pick Up 9 | 8 1 Fast Attach . | . . Attach 6 | 4 2 Detach . | . . Swap 1 | . 1 Drop . | . . Fire 14 | . 14 Melee . | . . Ram . | . . Kick . | . . Crush . | . . Escape Stasis . | . . Rewire . | . . Trap . | . . Miscellaneous . | . . Route ------- -11/Scrapyard -10/Materials (discovered 3 exits: [*Mat x2] / [*Min]) History --------- Turn | Location | Event 12 | -11/Scrapyard | Discovered new exit (range 15) 33 | -11/Scrapyard | Entered Materials 187 | -10/Materials | Discovered new exit (range 8) 312 | -10/Materials | Build established: Mutant 361 | -10/Materials | Discovered new exit (range 16) 417 | -10/Materials | Core integrity fell below 50% 417 | -10/Materials | Core integrity fell below 20% 668 | -10/Materials | Discovered new exit (range 11) 724 | -10/Materials | Destroyed by G-34 Mercenary with Small Laser Last Messages --------------- 00390_ An alarm sounds. 00390_ ALERT: Alarm triggered, dispatching investigation squad. 00407_ S-10 Pest destroyed. 00409_ Switching to secondary target: G-34 Mercenary. 00410_ Acquired 10 matter. 00411_ R-06 Scavenger collects Lgt. Assault Rifle. 00416_ Nuclear Reactor explodes. 00416_ S-10 Pest destroyed. 00416_ G-34 Mercenary destroyed. 00416_ R-06 Scavenger destroyed. 00416_ Recycling Unit disabled. 00416_ Flight Unit tumbles out of recycling unit. 00418_ The unstable cave ceiling collapses. 00421_ Acquired 27 matter. 00426_ The unstable cave ceiling collapses. 00461_ Acquired Assault Rifle. 00489_ The unstable cave ceiling collapses. 00668_ EXIT=FOUND 00700_ Connecting with Terminal... 00724_ G-34 Mercenary destroyed. Map ----- +----------------------------------------------------+ | < # #??# #?????""?????????? | | ##########??# #????????????????? | | #???????????# #????????????????? | | #???????????# #????????????????? | | ##???????????# #????????????????? | | ############## #????????????????? | | #????????????????? | | #????????????????? | | #????????????????? | | ############## #????????????????? | | #????????????# #????????????????? | | ^ +????????????# #????????????????? | | ^#????????????# #??# ????????????? | | #????????????# #??# ????????????? | | #????????????# #??# ????????????? | | #????????????# #??# ????????????? | | #????????????# #??#k????????????? | | #????????????# #??# ????????????? | | #????????????# #??#g###?????????? | | ?????????????# #??# #?????????? | | ?????????????# #??# %*/?????????? | | ?????????????# #??# #?????????? | | ???????????????# #??# #?????????? | | ???????????????# #??# #?????????? | | ???????????????# #??# #?????????? | | ???????????????# #### @#####?????? | | ???????????????# #?????? | | ???????????????# < #?????? | | ???????????????# #?????? | | ?????????????######+######+########?? | | ?????????????# # """ """ ?? | | ?????????????# """ """ # """ """ #? | | ?????????????# """ """ # """ """ #? | | ?????????????# """ """ # #? | | ?????????????# # [ #? | | ?????????????# # "T" #? | | ?????????????# ! # """ #? | | ?????????????#######################? | | | | | | | | | | | | | | | | | | | | | | | | | +----------------------------------------------------+ Best States ------------- Heat Dissipation 25 Energy Generation 10 Energy Capacity 250 Matter Stores 300 Matter Capacity 300 Sight Range 16 Terrain Scan Density 10 Evasion (%) 50 Recoil Reduction 2 Item Schematics ----------------- None Robot Schematics ------------------ None Fabricated ------------ Nothing Repaired ---------- Nothing Studied --------- None Alien Tech Used ----------------- None Achievements -------------- None Challenges ------------ None Game ------ Seed TeleporterMatterScrapsphere Manual? 0 Play Time 00:06:22 Cumulative 219.1 hours Start 2026.09.12 @ 11:55:01 End 2026.09.12 @ 11:58:40 Sessions 1 Manual Loads 0 Difficulty Rogue Special Mode None Game No. 345 Rogue 342 Adventurer 3 Explorer 0 Win Type - Total 1 Types 1/0/0/0/0/0/0/0/0/0 Lore% 67 Gallery% 57 Achievement% 33 Wizard Run 0 Options --------- Layout 0 ASCII 0 Keyboard 0 Movement Mouse Keybinds 0 Fullscreen 2 Font 18/SmallcapsGlow Map View 76x50 Zoom Use 0% Tactical HUD 1 Map Filters NONE Filters NONE Steam 1 RUN: 430c1d5c-276d-4a87-9c85-a7b05bc54b8e